fUSD/lending_fUSD_20240614
["ID","MTS","AMOUNT","RATE_DAILY","PERIOD"]
[329408828,1718323858060,-500.0,0.00024109,2]
[329408829,1718323858092,-500.0,0.00024109,2]
[329408830,1718323858142,-628.94,0.00024109,2]
[329408831,1718323858205,-500.0,0.00024109,2]
[329408832,1718323858253,-500.0,0.00024109,2]
[329408833,1718323858293,-4391.8,0.00024109,2]
[329408834,1718323858314,-1632.76001531,0.00024109,2]
[329408835,1718323858352,-824.08998469,0.00024109,2]
[329408836,1718323858428,-830.02,0.00024109,2]
[329408837,1718323858439,-5028.29001531,0.00024109,2]
[329408838,1718323858481,-3577.8,0.00024109,2]
[329408839,1718323858494,-442.00189353,0.00024109,2]
[329408840,1718323859097,-310.0765343,0.00024109,2]
[329408841,1718323859123,-852.18109769,0.00024109,2]
[329408842,1718323859149,-607.97134023,0.00024109,2]
[329408851,1718324902687,-155.0,0.00016535,4]
[329408852,1718324902724,-95.0730641,0.00016535,2]
[329408853,1718324970213,-625.47738869,0.00016534,2]
[329408854,1718324970256,-296.76888305,0.00017057,2]
[329408855,1718324970350,-1210.24684884,0.00017058,2]
[329408864,1718325034670,-958.2785447,0.00016205,2]
[329408865,1718325034698,-2624.290886,0.00016451,2]
[329408868,1718325034711,-300.0,0.00016534,2]
[329408869,1718325034745,-1290.40430824,0.00017058,2]
[329408875,1718325035180,-2909.07144292,0.00017058,2]
[329408876,1718325035209,-26019.28644335,0.00017058,2]
[329408877,1718325035260,-2413.76645243,0.00017058,2]
[329408878,1718325044968,-6574.6222626,0.00017058,2]
[329408879,1718325044984,-1047.79360002,0.00017058,2]
[329408880,1718325044996,-1364.1706901,0.00017058,2]
[329408881,1718325045032,-299.999,0.00017159,2]
[329408882,1718325045084,-3868.21225512,0.00017258,2]
[329408883,1718325045169,-603.07,0.00019829,2]
[329408884,1718325045192,-453.33042599,0.00021455,2]
[329408885,1718325045213,-250.0,0.00021509,2]
[329408886,1718325045238,-235.8,0.00021544,2]
[329408887,1718325045319,-451.78,0.00021588,2]
[329408888,1718325045348,-1000.0,0.00021641,2]
[329408889,1718325045362,-250.0,0.00021744,2]
[329408890,1718325045389,-2882.0,0.000218,2]
[329408891,1718325045417,-416.62,0.00021918,2]
[329408892,1718325045495,-250.0,0.00021918,2]
[329408893,1718325045533,-603.07,0.00022093,2]
[329408894,1718325045548,-1000.0,0.0002251,2]
[329408895,1718325045569,-500.0,0.0002251,2]
[329408896,1718325045581,-155.0,0.00022913,4]
[329408897,1718325045593,-187.27,0.00022914,2]
[329408898,1718325045620,-500.0,0.00023,2]
[329408899,1718325045638,-626.52827106,0.00023143,2]
[329408900,1718325045651,-417.69,0.00023288,2]
[329408901,1718325045663,-851.39,0.00023288,2]
[329408902,1718325045681,-851.39,0.00023288,2]
[329408903,1718325045748,-851.39,0.00023288,2]
[329408904,1718325045760,-849.74,0.00023288,2]
[329408905,1718325045799,-600.0,0.0002352,3]
[329408906,1718325045830,-1000.0,0.000239,8]
[329408907,1718325045883,-382.72650143,0.00024,2]
[329408908,1718325045928,-219.73,0.00024,2]
[329408909,1718325045940,-338.87128056,0.00024009,2]
[329408910,1718325045959,-4547.60123614,0.00024009,2]
[329408911,1718325045972,-1000.0,0.00024009,2]
[329408912,1718325045991,-13865.7704,0.00024009,2]
[329408913,1718325046012,-163.8151,0.00024009,2]
[329408914,1718325046033,-3604.4591,0.00024009,2]
[329408915,1718325046052,-217.4798775,0.00024107,2]
[329408916,1718325046063,-407.68898763,0.00024107,2]
[329408917,1718325046075,-777.2630943,0.00024107,2]
[329408918,1718325046086,-155.9550727,0.00024107,2]
[329408919,1718325046101,-155.0,0.00024107,2]
[329408920,1718325046114,-201.88106921,0.00024107,2]
[329408921,1718325046157,-155.0,0.00024108,2]
[329408922,1718325046181,-8922.35268778,0.00024108,2]
[329408923,1718325046194,-199.82966389,0.00024109,2]
[329408924,1718325046205,-96815.45981492,0.00024109,2]
[329408930,1718325046696,-940.06747296,0.00024109,2]
[329408931,1718325047040,-13888.79313183,0.00024109,2]
[329408932,1718325047080,-23335.13535588,0.00024109,2]
[329408933,1718325047097,-4959.08758781,0.00024109,2]
[329408934,1718325047134,-1748.56626615,0.00024109,2]
[329408935,1718325047159,-45.0481196,0.00024109,2]
[329408936,1718325047182,-1043.04984144,0.00024109,2]
[329408937,1718325047196,-31.93058046,0.00024109,2]
[329408940,1718325047407,-415.38382287,0.00024109,2]
[329408941,1718325047432,-500.0,0.00024109,2]
[329408942,1718325047483,-500.0,0.00024109,2]
[329408943,1718325047494,-500.0,0.00024109,2]
[329408944,1718325047505,-2000.0,0.00024109,2]
[329408945,1718325047517,-500.0,0.00024109,2]
[329408946,1718325047564,-200.0,0.00024109,2]
[329408947,1718325047576,-500.0,0.00024109,2]
[329408948,1718325047586,-518.57,0.00024109,2]
[329408949,1718325047605,-500.0,0.00024109,2]
[329408950,1718325047616,-442.86771354,0.00024109,2]
[329408951,1718325047644,-500.0,0.00024109,2]
[329408952,1718325047655,-500.0,0.00024109,2]
[329408953,1718325047676,-500.0,0.00024109,2]
[329408954,1718325047720,-500.0,0.00024109,2]
[329408955,1718325047738,-500.0,0.00024109,2]
[329408956,1718325047824,-500.0,0.00024109,2]
[329408957,1718325047864,-500.0,0.00024109,2]
[329408958,1718325047875,-235.82575211,0.00024109,2]
[329408959,1718325047907,-264.17424789,0.00024109,2]
[329408960,1718325047922,-500.0,0.00024109,2]
[329408961,1718325047954,-237.45619864,0.00024109,2]
[329408962,1718325047993,-262.54380136,0.00024109,2]
[329408963,1718325048016,-162.46209032,0.00024109,2]
[329408964,1718325048066,-500.0,0.00024109,2]
[329408965,1718325048080,-500.0,0.00024109,2]
[329408966,1718325048100,-500.0,0.00024109,2]
[329408967,1718325048141,-500.0,0.00024109,2]
[329408968,1718325048165,-518.80574849,0.00024109,2]
[329408969,1718325048238,-542.83239305,0.00024109,2]
[329408970,1718325048270,-438.57717678,0.00024109,2]
[329408971,1718325048292,-61.42282322,0.00024109,2]
[329408972,1718325048306,-500.0,0.00024109,2]
[329408973,1718325048335,-500.0,0.00024109,2]
[329408974,1718325048358,-500.0,0.00024109,2]
[329408975,1718325048397,-500.0,0.00024109,2]
[329408976,1718325048435,-500.0,0.00024109,2]
[329408977,1718325048502,-327.27807678,0.00024109,2]
[329408978,1718325048532,-172.72192322,0.00024109,2]
[329408979,1718325048561,-500.0,0.00024109,2]
[329408980,1718325048573,-500.0,0.00024109,2]
[329408981,1718325048584,-500.0,0.00024109,2]
[329408982,1718325048602,-500.0,0.00024109,2]
[329408983,1718325048614,-500.0,0.00024109,2]
[329408984,1718325048658,-500.0,0.00024109,2]
[329408985,1718325048670,-368.18697788,0.00024109,2]
[329408986,1718325048693,-500.0,0.00024109,2]
[329408987,1718325048705,-500.0,0.00024109,2]
[329408988,1718325048719,-500.0,0.00024109,2]
[329408989,1718325048738,-500.0,0.00024109,2]
[329408990,1718325048772,-500.0,0.00024109,2]
[329408991,1718325048800,-500.0,0.00024109,2]
[329408993,1718325048861,-500.0,0.00024109,2]
[329408996,1718325048900,-500.0,0.00024109,2]
[329408997,1718325048917,-500.0,0.00024109,2]
[329408998,1718325048927,-500.0,0.00024109,2]
[329408999,1718325048978,-500.0,0.00024109,2]
[329409000,1718325048995,-48.99316301,0.00024109,2]
[329409001,1718325049014,-451.00683699,0.00024109,2]
[329409002,1718325049056,-500.0,0.00024109,2]
[329409003,1718325049072,-323.87315601,0.00024109,2]
[329409004,1718325049090,-176.12684399,0.00024109,2]
[329409005,1718325049102,-500.0,0.00024109,2]
[329409006,1718325049114,-96.94315651,0.00024109,2]
[329409007,1718325049153,-806.05684349,0.00024109,2]
[329409008,1718325049180,-500.0,0.00024109,2]
[329409009,1718325049238,-500.0,0.00024109,2]
[329409010,1718325049283,-479.18956553,0.00024109,2]
[329409011,1718325049330,-20.81043447,0.00024109,2]
[329409012,1718325049345,-500.0,0.00024109,2]
[329409013,1718325049366,-500.0,0.00024109,2]
[329409014,1718325049396,-217.59491292,0.00024109,2]
[329409015,1718325049417,-500.0,0.00024109,2]
[329409016,1718325049467,-500.0,0.00024109,2]
[329409017,1718325049495,-500.0,0.00024109,2]
[329409018,1718325049523,-500.0,0.00024109,2]
[329409019,1718325049565,-500.0,0.00024109,2]
[329409022,1718325049598,-500.0,0.00024109,2]
[329409025,1718325049611,-500.0,0.00024109,2]
[329409026,1718325049621,-472.06083076,0.00024109,2]
[329409028,1718325049640,-27.93916924,0.00024109,2]
[329409030,1718325049680,-500.0,0.00024109,2]
[329409032,1718325049705,-506.67334206,0.00024109,2]
[329409035,1718325049724,-370.29266588,0.00024109,2]
[329409037,1718325049767,-129.70733412,0.00024109,2]
[329409039,1718325049803,-500.0,0.00024109,2]
[329409041,1718325049816,-500.0,0.00024109,2]
[329409043,1718325049830,-500.0,0.00024109,2]
[329409046,1718325049869,-500.0,0.00024109,2]
[329409047,1718325049879,-500.0,0.00024109,2]
[329409049,1718325049890,-500.0,0.00024109,2]
[329409052,1718325049904,-145.52775039,0.00024109,2]
[329409054,1718325049925,-354.47224961,0.00024109,2]
[329409056,1718325049940,-500.0,0.00024109,2]
[329409058,1718325049955,-500.0,0.00024109,2]
[329409059,1718325049980,-500.0,0.00024109,2]
[329409061,1718325049999,-500.0,0.00024109,2]
[329409063,1718325050016,-500.0,0.00024109,2]
[329409065,1718325050029,-500.0,0.00024109,2]
[329409067,1718325050055,-500.0,0.00024109,2]
[329409070,1718325050112,-500.0,0.00024109,2]
[329409072,1718325050125,-500.0,0.00024109,2]
[329409074,1718325050148,-500.0,0.00024109,2]
[329409076,1718325050165,-500.0,0.00024109,2]
[329409079,1718325050196,-500.0,0.00024109,2]
[329409080,1718325050216,-500.0,0.00024109,2]
[329409082,1718325050240,-892.65,0.00024109,2]
[329409084,1718325050272,-500.0,0.00024109,2]
[329409087,1718325050328,-500.0,0.00024109,2]
[329409089,1718325050340,-500.0,0.00024109,2]
[329409091,1718325050382,-500.0,0.00024109,2]
[329409094,1718325050401,-500.0,0.00024109,2]
[329409096,1718325050412,-200.0,0.00024109,2]
[329409097,1718325050455,-500.0,0.00024109,2]
[329409098,1718325050467,-500.0,0.00024109,2]
[329409099,1718325050512,-500.0,0.00024109,2]
[329409100,1718325050564,-500.0,0.00024109,2]
[329409101,1718325050575,-500.0,0.00024109,2]
[329409102,1718325050600,-500.0,0.00024109,2]
[329409103,1718325050618,-500.0,0.00024109,2]
[329409104,1718325050645,-331.76996982,0.00024109,2]
[329409105,1718325050655,-352.35,0.00024109,2]
[329409106,1718325050665,-500.0,0.00024109,2]
[329409107,1718325050674,-500.0,0.00024109,2]
[329409108,1718325050684,-500.0,0.00024109,2]
[329409109,1718325050694,-500.0,0.00024109,2]
[329409110,1718325050711,-327.30182708,0.00024109,2]
[329409111,1718325050728,-172.69817292,0.00024109,2]
[329409112,1718325050740,-203.47350111,0.00024109,2]
[329409137,1718325051363,-296.52649889,0.00024109,2]
[329409139,1718325051379,-500.0,0.00024109,2]
[329409141,1718325051396,-500.0,0.00024109,2]
[329409143,1718325051423,-131.32802246,0.00024109,2]
[329409145,1718325051453,-368.67197754,0.00024109,2]
[329409148,1718325051479,-500.0,0.00024109,2]
[329409150,1718325051506,-500.0,0.00024109,2]
[329409151,1718325051547,-500.0,0.00024109,2]
[329409154,1718325051577,-500.0,0.00024109,2]
[329409156,1718325051592,-500.0,0.00024109,2]
[329409157,1718325051608,-500.0,0.00024109,2]
[329409160,1718325051633,-500.0,0.00024109,2]
[329409162,1718325051650,-500.0,0.00024109,2]
[329409164,1718325051686,-500.0,0.00024109,2]
[329409166,1718325051713,-500.0,0.00024109,2]
[329409167,1718325051752,-34.81049432,0.00024109,2]
[329409169,1718325051788,-465.18950568,0.00024109,2]
[329409172,1718325051809,-500.0,0.00024109,2]
[329409173,1718325051822,-500.0,0.00024109,2]
[329409176,1718325051835,-500.0,0.00024109,2]
[329409177,1718325051855,-500.0,0.00024109,2]
[329409178,1718325051867,-500.0,0.00024109,2]
[329409180,1718325051877,-500.0,0.00024109,2]
[329409181,1718325051897,-500.0,0.00024109,2]
[329409182,1718325051926,-500.0,0.00024109,2]
[329409185,1718325051961,-500.0,0.00024109,2]
[329409187,1718325051972,-500.0,0.00024109,2]
[329409189,1718325051984,-500.0,0.00024109,2]
[329409191,1718325052000,-500.0,0.00024109,2]
[329409193,1718325052013,-469.98980478,0.00024109,2]
[329409194,1718325052029,-500.0,0.00024109,2]
[329409196,1718325052053,-500.0,0.00024109,2]
[329409199,1718325052108,-500.0,0.00024109,2]
[329409201,1718325052119,-500.0,0.00024109,2]
[329409203,1718325052140,-500.0,0.00024109,2]
[329409205,1718325052154,-630.35,0.00024109,2]
[329409206,1718325052182,-500.0,0.00024109,2]
[329409209,1718325052217,-500.0,0.00024109,2]
[329409211,1718325052231,-500.0,0.00024109,2]
[329409213,1718325052243,-500.0,0.00024109,2]
[329409215,1718325052254,-500.0,0.00024109,2]
[329409218,1718325052269,-386.09236669,0.00024109,2]
[329409220,1718325052284,-547.57,0.00024109,2]
[329409222,1718325052295,-500.0,0.00024109,2]
[329409223,1718325052339,-500.0,0.00024109,2]
[329409226,1718325052366,-500.0,0.00024109,2]
[329409227,1718325052376,-500.0,0.00024109,2]
[329409230,1718325052388,-500.0,0.00024109,2]
[329409232,1718325052401,-521.00674402,0.00024109,2]
[329409234,1718325052486,-500.0,0.00024109,2]
[329409236,1718325052503,-500.0,0.00024109,2]
[329409239,1718325052544,-500.0,0.00024109,2]
[329409240,1718325052554,-500.0,0.00024109,2]
[329409242,1718325052564,-500.0,0.00024109,2]
[329409244,1718325052584,-500.0,0.00024109,2]
[329409247,1718325052605,-500.0,0.00024109,2]
[329409249,1718325052616,-500.0,0.00024109,2]
[329409251,1718325052627,-500.0,0.00024109,2]
[329409253,1718325052642,-500.0,0.00024109,2]
[329409255,1718325052666,-868.0,0.00024109,2]
[329409257,1718325052678,-500.0,0.00024109,2]
[329409261,1718325052724,-500.0,0.00024109,2]
[329409263,1718325052741,-500.0,0.00024109,2]
[329409265,1718325052754,-500.0,0.00024109,2]
[329409268,1718325052782,-252.33031244,0.00024109,2]
[329409269,1718325052808,-557.67,0.00024109,2]
[329409271,1718325052820,-184.19283176,0.00024109,2]
[329409272,1718325052861,-500.0,0.00024109,2]
[329409273,1718325052874,-500.0,0.00024109,2]
[329409274,1718325052884,-500.0,0.00024109,2]
[329409275,1718325052900,-500.0,0.00024109,2]
[329409276,1718325052925,-500.0,0.00024109,2]
[329409277,1718325052937,-500.0,0.00024109,2]
[329409278,1718325053024,-500.0,0.00024109,2]
[329409279,1718325053036,-500.0,0.00024109,2]
[329409280,1718325053053,-294.28699364,0.00024109,2]
[329409281,1718325053065,-500.0,0.00024109,2]
[329409282,1718325053089,-500.0,0.00024109,2]
[329409283,1718325053148,-500.0,0.00024109,2]
[329409284,1718325053168,-500.0,0.00024109,2]
[329409285,1718325053196,-500.0,0.00024109,2]
[329409286,1718325053232,-500.0,0.00024109,2]
[329409287,1718325053270,-500.0,0.00024109,2]
[329409288,1718325053284,-500.0,0.00024109,2]
[329409289,1718325053314,-500.0,0.00024109,2]
[329409290,1718325053326,-509.96,0.00024109,2]
[329409291,1718325053352,-500.0,0.00024109,2]
[329409292,1718325053364,-500.0,0.00024109,2]
[329409293,1718325053377,-500.0,0.00024109,2]
[329409294,1718325053390,-500.0,0.00024109,2]
[329409295,1718325053401,-500.0,0.00024109,2]
[329409296,1718325053436,-500.0,0.00024109,2]
[329409297,1718325053473,-500.0,0.00024109,2]
[329409298,1718325053484,-500.0,0.00024109,2]
[329409299,1718325053495,-500.0,0.00024109,2]
[329409300,1718325053523,-500.0,0.00024109,2]
[329409301,1718325053554,-500.0,0.00024109,2]
[329409302,1718325053566,-601.98,0.00024109,2]
[329409303,1718325053579,-500.0,0.00024109,2]
[329409304,1718325053606,-500.0,0.00024109,2]
[329409305,1718325053623,-330.48,0.00024109,2]
[329409306,1718325053649,-622.98,0.00024109,2]
[329409307,1718325053668,-500.0,0.00024109,2]
[329409308,1718325053681,-500.0,0.00024109,2]
[329409309,1718325053713,-517.2,0.00024109,2]
[329409310,1718325053737,-500.0,0.00024109,2]
[329409311,1718325053781,-500.0,0.00024109,2]
[329409312,1718325053824,-500.0,0.00024109,2]
[329409313,1718325053835,-500.0,0.00024109,2]
[329409314,1718325053846,-500.0,0.00024109,2]
[329409315,1718325053888,-500.0,0.00024109,2]
[329409316,1718325053922,-482.02,0.00024109,2]
[329409317,1718325053952,-180.71,0.00024109,2]
[329409318,1718325053982,-500.0,0.00024109,2]
[329409319,1718325053997,-500.0,0.00024109,2]
[329409320,1718325054029,-500.0,0.00024109,2]
[329409321,1718325054076,-500.0,0.00024109,2]
[329409322,1718325054088,-500.0,0.00024109,2]
[329409323,1718325054100,-802.68,0.00024109,2]
[329409324,1718325054144,-500.0,0.00024109,2]
[329409325,1718325054176,-500.0,0.00024109,2]
[329409326,1718325054216,-500.0,0.00024109,2]
[329409327,1718325054248,-500.0,0.00024109,2]
[329409328,1718325054262,-500.0,0.00024109,2]
[329409329,1718325054274,-500.0,0.00024109,2]
[329409330,1718325054293,-500.0,0.00024109,2]
[329409331,1718325054341,-500.0,0.00024109,2]
[329409332,1718325054356,-500.0,0.00024109,2]
[329409333,1718325054368,-500.0,0.00024109,2]
[329409334,1718325054387,-500.0,0.00024109,2]
[329409335,1718325054409,-500.0,0.00024109,2]
[329409336,1718325054426,-532.01,0.00024109,2]
[329409337,1718325054474,-951.2,0.00024109,2]
[329409338,1718325054500,-500.0,0.00024109,2]
[329409339,1718325054524,-500.0,0.00024109,2]
[329409340,1718325054536,-500.0,0.00024109,2]
[329409341,1718325054552,-500.0,0.00024109,2]
[329409342,1718325054576,-500.0,0.00024109,2]
[329409343,1718325054603,-500.0,0.00024109,2]
[329409344,1718325054661,-500.0,0.00024109,2]
[329409345,1718325054678,-168.93,0.00024109,2]
[329409346,1718325054704,-500.0,0.00024109,2]
[329409347,1718325054716,-500.0,0.00024109,2]
[329409348,1718325054765,-500.0,0.00024109,2]
[329409349,1718325054793,-500.0,0.00024109,2]
[329409350,1718325054841,-500.0,0.00024109,2]
[329409351,1718325054873,-500.0,0.00024109,2]
[329409352,1718325054900,-500.0,0.00024109,2]
[329409353,1718325054925,-500.0,0.00024109,2]
[329409354,1718325054940,-500.0,0.00024109,2]
[329409355,1718325054958,-500.0,0.00024109,2]
[329409356,1718325054969,-1631.07,0.00024109,2]
[329409357,1718325055004,-500.0,0.00024109,2]
[329409358,1718325055044,-734.03,0.00024109,2]
[329409359,1718325055055,-3148.3,0.00024109,2]
[329409360,1718325055076,-500.0,0.00024109,2]
[329409361,1718325055117,-500.0,0.00024109,2]
[329409362,1718325055173,-500.0,0.00024109,2]
[329409363,1718325055209,-500.0,0.00024109,2]
[329409364,1718325055228,-3172.57,0.00024109,2]
[329409365,1718325055241,-500.0,0.00024109,2]
[329409366,1718325055252,-500.0,0.00024109,2]
[329409367,1718325055263,-500.0,0.00024109,2]
[329409368,1718325055285,-500.0,0.00024109,2]
[329409369,1718325055306,-500.0,0.00024109,2]
[329409370,1718325055328,-826.49,0.00024109,2]
[329409371,1718325055350,-1185.8,0.00024109,2]
[329409372,1718325055362,-9852.75,0.00024109,2]
[329409373,1718325055392,-500.0,0.00024109,2]
[329409374,1718325055420,-10163.93,0.00024109,2]
[329409375,1718325055469,-500.0,0.00024109,2]
[329409376,1718325055491,-1084.24,0.00024109,2]
[329409377,1718325055508,-1304.67,0.00024109,2]
[329409378,1718325055531,-500.0,0.00024109,2]
[329409379,1718325055551,-4208.81,0.00024109,2]
[329409380,1718325055575,-510.24854625,0.00024109,2]
[329409381,1718325055589,-500.0,0.00024109,2]
[329409382,1718325055623,-728.3,0.00024109,2]
[329409383,1718325055676,-500.0,0.00024109,2]
[329409384,1718325055708,-1904.75,0.00024109,2]
[329409385,1718325055723,-1520.49,0.00024109,2]
[329409386,1718325055751,-500.0,0.00024109,2]
[329409387,1718325055784,-936.13,0.00024109,2]
[329409388,1718325055802,-500.0,0.00024109,2]
[329409389,1718325055826,-1103.25919,0.00024109,2]
[329409390,1718325055840,-866.3,0.00024109,2]
[329409391,1718325055852,-915.31,0.00024109,2]
[329409392,1718325055892,-500.0,0.00024109,2]
[329409393,1718325055913,-500.0,0.00024109,2]
[329409394,1718325055944,-2636.16,0.00024109,2]
[329409395,1718325055969,-886.87,0.00024109,2]
[329409396,1718325056005,-566.28,0.00024109,2]
[329409397,1718325056016,-500.0,0.00024109,2]
[329409398,1718325056053,-500.0,0.00024109,2]
[329409399,1718325056066,-500.0,0.00024109,2]
[329409400,1718325056092,-500.0,0.00024109,2]
[329409401,1718325056103,-500.0,0.00024109,2]
[329409402,1718325056114,-1038.72,0.00024109,2]
[329409403,1718325056139,-500.0,0.00024109,2]
[329409404,1718325056157,-500.0,0.00024109,2]
[329409405,1718325056180,-4754.57,0.00024109,2]
[329409406,1718325056196,-500.0,0.00024109,2]
[329409407,1718325056207,-2542.2,0.00024109,2]
[329409408,1718325056222,-1476.41,0.00024109,2]
[329409409,1718325056235,-500.0,0.00024109,2]
[329409410,1718325056247,-1742.15,0.00024109,2]
[329409411,1718325056257,-500.0,0.00024109,2]
[329409412,1718325056273,-500.0,0.00024109,2]
[329409413,1718325056286,-591.8,0.00024109,2]
[329409414,1718325056316,-500.0,0.00024109,2]
[329409415,1718325056356,-500.0,0.00024109,2]
[329409416,1718325056367,-500.0,0.00024109,2]
[329409417,1718325056379,-500.0,0.00024109,2]
[329409418,1718325056390,-500.0,0.00024109,2]
[329409419,1718325056401,-500.0,0.00024109,2]
[329409420,1718325056412,-500.0,0.00024109,2]
[329409421,1718325056423,-295.98632887,0.00024109,2]
[329409422,1718325056455,-541.9,0.00024109,2]
[329409423,1718325056470,-500.0,0.00024109,2]
[329409424,1718325056495,-997.25,0.00024109,2]
[329409425,1718325056507,-500.0,0.00024109,2]
[329409426,1718325056532,-500.0,0.00024109,2]
[329409427,1718325056565,-4036.47,0.00024109,2]
[329409428,1718325056592,-500.0,0.00024109,2]
[329409429,1718325056617,-500.0,0.00024109,2]
[329409430,1718325056646,-500.0,0.00024109,2]
[329409431,1718325056665,-500.0,0.00024109,2]
[329409432,1718325056676,-500.0,0.00024109,2]
[329409433,1718325056688,-500.0,0.00024109,2]
[329409434,1718325056705,-620.68,0.00024109,2]
[329409435,1718325056737,-500.0,0.00024109,2]
[329409436,1718325056761,-2021.49,0.00024109,2]
[329409437,1718325056774,-500.0,0.00024109,2]
[329409438,1718325056795,-500.0,0.00024109,2]
[329409439,1718325056814,-1774.65,0.00024109,2]
[329409440,1718325056826,-651.49,0.00024109,2]
[329409441,1718325056837,-500.0,0.00024109,2]
[329409442,1718325056853,-500.0,0.00024109,2]
[329409443,1718325056872,-1059.73,0.00024109,2]
[329409444,1718325056890,-6161.37,0.00024109,2]
[329409445,1718325056901,-500.0,0.00024109,2]
[329409446,1718325056912,-1013.18,0.00024109,2]
[329409447,1718325056937,-513.58,0.00024109,2]
[329409448,1718325056949,-941.14,0.00024109,2]
[329409449,1718325056961,-500.0,0.00024109,2]
[329409450,1718325056977,-500.0,0.00024109,2]
[329409451,1718325056993,-500.0,0.00024109,2]
[329409452,1718325057030,-500.0,0.00024109,2]
[329409453,1718325057055,-780.68,0.00024109,2]
[329409454,1718325057095,-500.0,0.00024109,2]
[329409455,1718325057168,-843.77,0.00024109,2]
[329409456,1718325057226,-500.0,0.00024109,2]
[329409457,1718325057271,-4460.35,0.00024109,2]
[329409458,1718325057287,-500.0,0.00024109,2]
[329409459,1718325057327,-3006.39,0.00024109,2]
[329409460,1718325057341,-500.0,0.00024109,2]
[329409461,1718325057354,-588.46,0.00024109,2]
[329409462,1718325057368,-615.74510999,0.00024109,2]
[329409463,1718325057392,-1487.44,0.00024109,2]
[329409464,1718325057448,-4817.31,0.00024109,2]
[329409465,1718325057459,-500.0,0.00024109,2]
[329409466,1718325057472,-3223.05,0.00024109,2]
[329409467,1718325057490,-500.0,0.00024109,2]
[329409468,1718325057512,-631.21,0.00024109,2]
[329409469,1718325057532,-500.0,0.00024109,2]
[329409470,1718325057544,-500.0,0.00024109,2]
[329409471,1718325057561,-836.08,0.00024109,2]
[329409472,1718325057585,-2600.25,0.00024109,2]
[329409473,1718325057676,-657.03,0.00024109,2]
[329409474,1718325057688,-857.41,0.00024109,2]
[329409475,1718325057721,-500.0,0.00024109,2]
[329409476,1718325057763,-1731.17,0.00024109,2]
[329409477,1718325057789,-500.0,0.00024109,2]
[329409478,1718325057823,-1511.43,0.00024109,2]
[329409479,1718325057886,-500.0,0.00024109,2]
[329409480,1718325057945,-500.0,0.00024109,2]
[329409481,1718325057960,-6055.07,0.00024109,2]
[329409482,1718325057973,-500.0,0.00024109,2]
[329409483,1718325057996,-12154.75,0.00024109,2]
[329409484,1718325058036,-500.0,0.00024109,2]
[329409485,1718325058074,-2583.57,0.00024109,2]
[329409486,1718325058101,-1164.09370103,0.00024109,2]
[329409487,1718325058181,-114.09629897,0.00024109,2]
[329409488,1718325058193,-649.74,0.00024109,2]
[329409489,1718325058206,-1025.51,0.00024109,2]
[329409490,1718325058242,-500.0,0.00024109,2]
[329409491,1718325058265,-500.0,0.00024109,2]
[329409492,1718325058283,-740.41,0.00024109,2]
[329409493,1718325058295,-500.0,0.00024109,2]